[Event "*** Titled Tuesday Blitz"]
[Site "Chess.com"]
[Date "2019.02.05"]
[Round "2"]
[White "King_of_the_wing"]
[Black "julinha97"]
[Result "1-0"]
[WhiteElo "2208"]
[BlackElo "2088"]
[TimeControl "180+2"]
[EndTime "13:21:22 PST"]
[Termination "King_of_the_wing won by resignation"]

1. e4 {[%clk 0:03:01.9]} 1... c5 {[%clk 0:02:55.8]} 2. Nf3 {[%clk 0:03:02.2]}
2... d6 {[%clk 0:02:57.1]} 3. d4 {[%clk 0:03:02.4]} 3... cxd4 {[%clk 0:02:59]}
4. Nxd4 {[%clk 0:03:03.5]} 4... Nf6 {[%clk 0:03:00.4]} 5. Nc3 {[%clk 0:03:04.9]}
5... g6 {[%clk 0:03:01.9]} 6. f4 {[%clk 0:03:05.5]} 6... Nc6 {[%clk 0:03:01.9]}
7. Nxc6 {[%clk 0:03:06.6]} 7... bxc6 {[%clk 0:03:03.8]} 8. Bc4 {[%clk
0:03:06.9]} 8... Bg7 {[%clk 0:02:46.2]} 9. e5 {[%clk 0:02:53.5]} 9... Bg4 {[%clk
0:02:43]} 10. exf6 {[%clk 0:02:18.8]} 10... Bxd1 {[%clk 0:02:41.1]} 11. fxg7
{[%clk 0:02:20]} 11... Rg8 {[%clk 0:02:40.2]} 12. Nxd1 {[%clk 0:02:14.7]} 12...
d5 {[%clk 0:02:40.3]} 13. Bd3 {[%clk 0:02:10.4]} 13... Rxg7 {[%clk 0:02:35.3]}
14. O-O {[%clk 0:02:11.2]} 14... e6 {[%clk 0:02:28.5]} 15. Be3 {[%clk
0:02:07.1]} 15... Qa5 {[%clk 0:02:25.4]} 16. Bd4 {[%clk 0:02:01.2]} 16... Rg8
{[%clk 0:02:20.5]} 17. c3 {[%clk 0:02:02.3]} 17... c5 {[%clk 0:02:19.6]} 18. Be5
{[%clk 0:02:03.5]} 18... Ke7 {[%clk 0:02:17.2]} 19. b4 {[%clk 0:01:21.6]} 19...
cxb4 {[%clk 0:02:11]} 20. cxb4 {[%clk 0:01:17.1]} 20... Qxb4 {[%clk 0:02:07.9]}
21. Rb1 {[%clk 0:01:16.4]} 21... Qc5+ {[%clk 0:02:07.7]} 22. Kh1 {[%clk
0:01:17.4]} 22... Rgd8 {[%clk 0:02:06.7]} 23. Rb7+ {[%clk 0:01:11.2]} 23... Rd7
{[%clk 0:02:05.6]} 24. Bf6+ {[%clk 0:01:03.4]} 24... Ke8 {[%clk 0:02:00.8]} 25.
Bb5 {[%clk 0:01:00.6]} 25... Kf8 {[%clk 0:01:31.4]} 26. Bxd7 {[%clk 0:00:53.6]}
26... Qc4 {[%clk 0:01:27.8]} 27. Bb5 {[%clk 0:00:35.2]} 27... Qc2 {[%clk
0:01:20.4]} 28. Ne3 {[%clk 0:00:25.6]} 28... Qd2 {[%clk 0:01:21.5]} 29. Ng4
{[%clk 0:00:23.9]} 29... Rc8 {[%clk 0:01:20.8]} 30. Ne5 {[%clk 0:00:20.3]} 30...
Rc1 {[%clk 0:01:09]} 31. Rb8+ {[%clk 0:00:19.9]} 1-0

[Event "*** Titled Tuesday Blitz"]
[Site "Chess.com"]
[Date "2019.02.05"]
[Round "2"]
[White "Sashadav97"]
[Black "igorkovalenko"]
[Result "1-0"]
[WhiteElo "2633"]
[BlackElo "2867"]
[TimeControl "180+2"]
[EndTime "13:21:25 PST"]
[Termination "Sashadav97 won by checkmate"]

1. d4 {[%clk 0:03:01.9]} 1... d5 {[%clk 0:02:59.8]} 2. c4 {[%clk 0:03:02.3]}
2... c6 {[%clk 0:03:00.7]} 3. Nf3 {[%clk 0:03:02.4]} 3... Nf6 {[%clk 0:03:01.6]}
4. Nc3 {[%clk 0:03:02.3]} 4... dxc4 {[%clk 0:03:02.9]} 5. a4 {[%clk 0:03:02.6]}
5... Bf5 {[%clk 0:03:03.6]} 6. e3 {[%clk 0:03:03.7]} 6... e6 {[%clk 0:03:03.9]}
7. Bxc4 {[%clk 0:03:05.3]} 7... Bb4 {[%clk 0:03:05.2]} 8. O-O {[%clk 0:03:06.6]}
8... Nbd7 {[%clk 0:03:06.6]} 9. Qe2 {[%clk 0:03:07.8]} 9... O-O {[%clk
0:03:06.8]} 10. e4 {[%clk 0:03:09]} 10... Bg6 {[%clk 0:03:08.4]} 11. Bd3 {[%clk
0:03:10.2]} 11... a5 {[%clk 0:03:04.7]} 12. Bf4 {[%clk 0:03:08]} 12... Re8
{[%clk 0:03:02.7]} 13. Rad1 {[%clk 0:02:59]} 13... Bh5 {[%clk 0:02:57.6]} 14. e5
{[%clk 0:02:52.8]} 14... Nd5 {[%clk 0:02:58.5]} 15. Nxd5 {[%clk 0:02:54]} 15...
exd5 {[%clk 0:02:50.2]} 16. h3 {[%clk 0:02:50.6]} 16... Nf8 {[%clk 0:02:50.9]}
17. g4 {[%clk 0:02:49.8]} 17... Bg6 {[%clk 0:02:52.3]} 18. Kg2 {[%clk
0:02:49.5]} 18... b6 {[%clk 0:02:52.5]} 19. Bg3 {[%clk 0:02:40]} 19... Qd7
{[%clk 0:02:49.7]} 20. Nh4 {[%clk 0:02:37.7]} 20... Bxd3 {[%clk 0:02:46.7]} 21.
Rxd3 {[%clk 0:02:35.8]} 21... c5 {[%clk 0:02:47.4]} 22. Nf5 {[%clk 0:02:35.4]}
22... Ne6 {[%clk 0:02:45.3]} 23. Kh2 {[%clk 0:02:02]} 23... c4 {[%clk
0:02:40.4]} 24. Rdd1 {[%clk 0:02:03]} 24... Qxa4 {[%clk 0:02:40.6]} 25. f4
{[%clk 0:02:04]} 25... c3 {[%clk 0:02:36.9]} 26. bxc3 {[%clk 0:01:47.7]} 26...
Bxc3 {[%clk 0:02:38.1]} 27. Qd3 {[%clk 0:01:44.8]} 27... Rac8 {[%clk 0:02:32.6]}
28. Nd6 {[%clk 0:01:45.4]} 28... Qxd4 {[%clk 0:02:19.6]} 29. Nxe8 {[%clk
0:01:39.2]} 29... Rxe8 {[%clk 0:02:11.9]} 30. f5 {[%clk 0:01:39.6]} 30... Qc5
{[%clk 0:02:09]} 31. fxe6 {[%clk 0:01:37]} 31... fxe6 {[%clk 0:02:10.9]} 32. Qf3
{[%clk 0:01:34.6]} 32... Qc7 {[%clk 0:02:06.1]} 33. Rc1 {[%clk 0:01:21]} 33...
d4 {[%clk 0:02:07.4]} 34. Qe4 {[%clk 0:01:22.3]} 34... b5 {[%clk 0:02:05.8]} 35.
Qxd4 {[%clk 0:01:18.2]} 35... b4 {[%clk 0:02:05.3]} 36. Rf3 {[%clk 0:01:02.6]}
36... Rd8 {[%clk 0:02:01]} 37. Qf4 {[%clk 0:01:00.1]} 37... h6 {[%clk
0:01:57.6]} 38. Rcf1 {[%clk 0:00:58]} 38... a4 {[%clk 0:01:54.4]} 39. Qe4 {[%clk
0:00:56.3]} 39... a3 {[%clk 0:01:48.9]} 40. Qg6 {[%clk 0:00:57.1]} 40... Qb7
{[%clk 0:01:35.4]} 41. Qxe6+ {[%clk 0:00:51]} 41... Kh7 {[%clk 0:01:35.2]} 42.
Qf5+ {[%clk 0:00:47.4]} 42... Kh8 {[%clk 0:01:35.3]} 43. Qg6 {[%clk 0:00:47.5]}
43... a2 {[%clk 0:01:30.4]} 44. Rf8+ {[%clk 0:00:46.4]} 44... Rxf8 {[%clk
0:01:31.4]} 45. Rxf8# {[%clk 0:00:48.3]} 1-0

[Event "*** Titled Tuesday Blitz"]
[Site "Chess.com"]
[Date "2019.02.05"]
[Round "2"]
[White "AkibaRubi"]
[Black "evgenysharapov"]
[Result "0-1"]
[WhiteElo "2591"]
[BlackElo "2314"]
[TimeControl "180+2"]
[EndTime "13:21:25 PST"]
[Termination "evgenysharapov won on time"]

1. d4 {[%clk 0:03:01.9]} 1... d5 {[%clk 0:03:00.6]} 2. c4 {[%clk 0:03:01.9]}
2... c6 {[%clk 0:03:01.2]} 3. Nc3 {[%clk 0:02:55.7]} 3... Nf6 {[%clk 0:03:01.5]}
4. e3 {[%clk 0:02:54.8]} 4... e6 {[%clk 0:03:02]} 5. Bd3 {[%clk 0:02:54.6]} 5...
Nbd7 {[%clk 0:03:02.3]} 6. Nf3 {[%clk 0:02:51]} 6... dxc4 {[%clk 0:03:01.5]} 7.
Bxc4 {[%clk 0:02:51.5]} 7... b5 {[%clk 0:03:02.2]} 8. Bd3 {[%clk 0:02:50.2]}
8... Bb7 {[%clk 0:03:02.7]} 9. O-O {[%clk 0:02:47.4]} 9... Bd6 {[%clk
0:02:57.3]} 10. e4 {[%clk 0:02:37.6]} 10... e5 {[%clk 0:02:57.8]} 11. Re1 {[%clk
0:02:29.5]} 11... O-O {[%clk 0:02:57.3]} 12. a3 {[%clk 0:02:23.6]} 12... Qb8
{[%clk 0:02:55.7]} 13. h3 {[%clk 0:02:10.9]} 13... a6 {[%clk 0:02:56]} 14. Be3
{[%clk 0:01:50.3]} 14... Re8 {[%clk 0:02:42.1]} 15. dxe5 {[%clk 0:01:29.9]}
15... Nxe5 {[%clk 0:02:42]} 16. Nxe5 {[%clk 0:01:30.9]} 16... Bxe5 {[%clk
0:02:42.2]} 17. f3 {[%clk 0:01:24.2]} 17... Nh5 {[%clk 0:02:34.3]} 18. Ne2
{[%clk 0:01:08.7]} 18... Nf4 {[%clk 0:02:29.3]} 19. Nxf4 {[%clk 0:01:04.9]}
19... Bxf4 {[%clk 0:02:29.9]} 20. Bxf4 {[%clk 0:00:48.4]} 20... Qxf4 {[%clk
0:02:29.4]} 21. Qe2 {[%clk 0:00:47.9]} 21... c5 {[%clk 0:02:29.7]} 22. Rac1
{[%clk 0:00:47.8]} 22... c4 {[%clk 0:02:30.1]} 23. Bb1 {[%clk 0:00:46.8]} 23...
Rad8 {[%clk 0:02:29.7]} 24. Red1 {[%clk 0:00:45]} 24... g6 {[%clk 0:02:28.5]}
25. Bc2 {[%clk 0:00:24.7]} 25... Qe5 {[%clk 0:02:27.6]} 26. Bb1 {[%clk
0:00:21.7]} 26... h5 {[%clk 0:02:20.6]} 27. Rxd8 {[%clk 0:00:17]} 27... Rxd8
{[%clk 0:02:20.8]} 28. Bc2 {[%clk 0:00:17.1]} 28... Qxb2 {[%clk 0:02:18.4]} 29.
Rd1 {[%clk 0:00:12]} 29... Rxd1+ {[%clk 0:02:15.8]} 30. Qxd1 {[%clk 0:00:13.9]}
30... Qxa3 {[%clk 0:02:14]} 31. Qd8+ {[%clk 0:00:14.1]} 31... Qf8 {[%clk
0:02:13]} 32. Qb6 {[%clk 0:00:12.6]} 32... Qc8 {[%clk 0:02:07.9]} 33. Qf6 {[%clk
0:00:09.7]} 33... Qc6 {[%clk 0:01:49.9]} 34. Qg5 {[%clk 0:00:05.5]} 34... b4
{[%clk 0:01:47.7]} 0-1

[Event "*** Titled Tuesday Blitz"]
[Site "Chess.com"]
[Date "2019.02.05"]
[Round "2"]
[White "Airquake"]
[Black "iturrizaga"]
[Result "0-1"]
[WhiteElo "2552"]
[BlackElo "2777"]
[TimeControl "180+2"]
[EndTime "13:21:30 PST"]
[Termination "iturrizaga won by resignation"]

1. e4 {[%clk 0:03:01.9]} 1... c5 {[%clk 0:03:01]} 2. Nf3 {[%clk 0:03:02.7]} 2...
g6 {[%clk 0:03:02.1]} 3. g3 {[%clk 0:03:02.3]} 3... Bg7 {[%clk 0:03:02.9]} 4.
Bg2 {[%clk 0:03:03.4]} 4... Nc6 {[%clk 0:03:04.5]} 5. O-O {[%clk 0:03:04.4]}
5... e5 {[%clk 0:03:04.6]} 6. c3 {[%clk 0:03:03]} 6... Nge7 {[%clk 0:03:05]} 7.
d3 {[%clk 0:03:02.6]} 7... h6 {[%clk 0:03:04.1]} 8. Be3 {[%clk 0:03:03.5]} 8...
d6 {[%clk 0:03:04.4]} 9. d4 {[%clk 0:03:01.2]} 9... exd4 {[%clk 0:02:58.3]} 10.
cxd4 {[%clk 0:03:01.9]} 10... Bg4 {[%clk 0:02:59.4]} 11. d5 {[%clk 0:02:41.5]}
11... Ne5 {[%clk 0:02:43.5]} 12. Nc3 {[%clk 0:02:33.8]} 12... O-O {[%clk
0:02:39.3]} 13. Bf4 {[%clk 0:02:25.2]} 13... f5 {[%clk 0:02:28.7]} 14. Bxe5
{[%clk 0:02:24.4]} 14... Bxe5 {[%clk 0:02:29.7]} 15. exf5 {[%clk 0:02:19.2]}
15... Nxf5 {[%clk 0:02:04.7]} 16. Qd3 {[%clk 0:02:15.3]} 16... Bxf3 {[%clk
0:02:03.8]} 17. Bxf3 {[%clk 0:02:14.1]} 17... Qf6 {[%clk 0:02:05.3]} 18. Be4
{[%clk 0:02:11.6]} 18... Rae8 {[%clk 0:01:52.8]} 19. Rae1 {[%clk 0:02:08.1]}
19... a6 {[%clk 0:01:49.4]} 20. Kg2 {[%clk 0:02:00.8]} 20... Kg7 {[%clk
0:01:37.5]} 21. f4 {[%clk 0:01:37.9]} 21... Bd4 {[%clk 0:00:59.2]} 22. Bxf5
{[%clk 0:01:31.4]} 22... Qxf5 {[%clk 0:01:00.6]} 23. Qxf5 {[%clk 0:01:30.1]}
23... gxf5 {[%clk 0:01:02.5]} 24. Kf3 {[%clk 0:01:25.9]} 24... b5 {[%clk
0:01:00.5]} 25. h3 {[%clk 0:01:02.6]} 25... h5 {[%clk 0:00:59.2]} 26. Nd1 {[%clk
0:01:00.6]} 26... c4 {[%clk 0:00:55.9]} 27. g4 {[%clk 0:00:57.6]} 27... fxg4+
{[%clk 0:00:47.6]} 28. hxg4 {[%clk 0:00:58.6]} 28... Be5 {[%clk 0:00:44.6]} 29.
f5 {[%clk 0:00:52.4]} 29... hxg4+ {[%clk 0:00:45.2]} 30. Kxg4 {[%clk 0:00:53.2]}
30... Kf6 {[%clk 0:00:46]} 31. Ne3 {[%clk 0:00:48.3]} 31... Rg8+ {[%clk
0:00:45.9]} 32. Kf3 {[%clk 0:00:49.4]} 32... Rg3+ {[%clk 0:00:46.1]} 33. Kf2
{[%clk 0:00:45.1]} 33... Rxe3 {[%clk 0:00:46.6]} 0-1

[Event "*** Titled Tuesday Blitz"]
[Site "Chess.com"]
[Date "2019.02.05"]
[Round "2"]
[White "saikrishnaReturns"]
[Black "Kumi29"]
[Result "0-1"]
[WhiteElo "2620"]
[BlackElo "2381"]
[TimeControl "180+2"]
[EndTime "13:21:35 PST"]
[Termination "Kumi29 won by checkmate"]

1. e4 {[%clk 0:03:01.9]} 1... e6 {[%clk 0:03:00.5]} 2. d4 {[%clk 0:03:00.4]}
2... d5 {[%clk 0:03:01]} 3. Nc3 {[%clk 0:03:01.9]} 3... Nc6 {[%clk 0:03:01.4]}
4. Nf3 {[%clk 0:02:59.6]} 4... Nf6 {[%clk 0:03:02]} 5. Bg5 {[%clk 0:02:48.8]}
5... dxe4 {[%clk 0:02:59.9]} 6. Nxe4 {[%clk 0:02:48.4]} 6... Qd5 {[%clk
0:03:01]} 7. Nxf6+ {[%clk 0:02:46.9]} 7... gxf6 {[%clk 0:03:02]} 8. Bxf6 {[%clk
0:02:47]} 8... Rg8 {[%clk 0:03:03.5]} 9. Qd3 {[%clk 0:02:37.3]} 9... Rg6 {[%clk
0:02:47.2]} 10. Bh4 {[%clk 0:02:37]} 10... Bd7 {[%clk 0:02:36.4]} 11. Bg3 {[%clk
0:02:20.6]} 11... O-O-O {[%clk 0:02:35.4]} 12. Be2 {[%clk 0:02:21.4]} 12... h5
{[%clk 0:02:03.1]} 13. c4 {[%clk 0:02:10.9]} 13... Bb4+ {[%clk 0:02:01.5]} 14.
Kf1 {[%clk 0:02:10.7]} 14... Qa5 {[%clk 0:01:58]} 15. c5 {[%clk 0:01:46.5]}
15... Be8 {[%clk 0:01:34.2]} 16. Qc4 {[%clk 0:01:47]} 16... Rg4 {[%clk
0:01:24.7]} 17. Rd1 {[%clk 0:01:27.9]} 17... h4 {[%clk 0:00:51.6]} 18. Be5
{[%clk 0:01:21.7]} 18... Nxe5 {[%clk 0:00:45.9]} 19. Nxe5 {[%clk 0:01:20.9]}
19... Re4 {[%clk 0:00:46.9]} 20. c6 {[%clk 0:00:48.8]} 20... Qxe5 {[%clk
0:00:44.5]} 21. Qxb4 {[%clk 0:00:48]} 21... Rdxd4 {[%clk 0:00:39.9]} 22. Qxb7+
{[%clk 0:00:47.5]} 22... Kd8 {[%clk 0:00:40.7]} 23. Rxd4+ {[%clk 0:00:43.8]}
23... Rxd4 {[%clk 0:00:40.6]} 24. g3 {[%clk 0:00:28.7]} 24... Qd5 {[%clk
0:00:32.3]} 25. Qb8+ {[%clk 0:00:28.2]} 25... Ke7 {[%clk 0:00:33.1]} 26. Qxc7+
{[%clk 0:00:30.1]} 26... Kf8 {[%clk 0:00:34.5]} 27. Rg1 {[%clk 0:00:29.5]} 27...
h3 {[%clk 0:00:34.4]} 28. Qxa7 {[%clk 0:00:21.8]} 28... Rd1+ {[%clk 0:00:34.1]}
29. Bxd1 {[%clk 0:00:21.1]} 29... Qxd1# {[%clk 0:00:36]} 0-1

[Event "*** Titled Tuesday Blitz"]
[Site "Chess.com"]
[Date "2019.02.05"]
[Round "2"]
[White "amiralfio"]
[Black "riconaipe"]
[Result "0-1"]
[WhiteElo "2362"]
[BlackElo "2454"]
[TimeControl "180+2"]
[EndTime "13:21:38 PST"]
[Termination "riconaipe won by resignation"]

1. d4 {[%clk 0:03:01.9]} 1... d5 {[%clk 0:02:59.8]} 2. Bf4 {[%clk 0:02:57.9]}
2... e6 {[%clk 0:03:00.4]} 3. e3 {[%clk 0:02:58.1]} 3... Bd6 {[%clk 0:03:01.2]}
4. Bg3 {[%clk 0:02:58.9]} 4... Nf6 {[%clk 0:03:01.3]} 5. Nf3 {[%clk 0:02:59.4]}
5... O-O {[%clk 0:03:02.6]} 6. Nbd2 {[%clk 0:03:00.6]} 6... Ne4 {[%clk
0:03:03.7]} 7. Nxe4 {[%clk 0:03:00.8]} 7... dxe4 {[%clk 0:03:04.6]} 8. Nd2
{[%clk 0:03:02.4]} 8... f5 {[%clk 0:03:04.8]} 9. Bxd6 {[%clk 0:03:00.8]} 9...
cxd6 {[%clk 0:03:05.5]} 10. g4 {[%clk 0:03:00.9]} 10... d5 {[%clk 0:03:06.2]}
11. gxf5 {[%clk 0:02:55.1]} 11... exf5 {[%clk 0:03:06.4]} 12. c4 {[%clk
0:02:54.1]} 12... f4 {[%clk 0:03:06.3]} 13. Qh5 {[%clk 0:02:49.3]} 13... Rf5
{[%clk 0:03:00.8]} 14. Qe2 {[%clk 0:02:19.2]} 14... fxe3 {[%clk 0:02:14.5]} 15.
Qxe3 {[%clk 0:02:21.1]} 15... Be6 {[%clk 0:02:11.1]} 16. O-O-O {[%clk
0:02:16.8]} 16... Nc6 {[%clk 0:02:10.1]} 17. Nxe4 {[%clk 0:02:08.1]} 17... dxe4
{[%clk 0:02:05.9]} 18. d5 {[%clk 0:02:08.9]} 18... Rf3 {[%clk 0:01:50.4]} 19.
Qxe4 {[%clk 0:02:07.7]} 19... Qg5+ {[%clk 0:01:49.3]} 20. Rd2 {[%clk 0:01:59.6]}
20... Ne5 {[%clk 0:01:34.5]} 21. h4 {[%clk 0:01:51.6]} 21... Qf5 {[%clk
0:01:22.7]} 22. Re2 {[%clk 0:01:10.2]} 22... Nd3+ {[%clk 0:01:10.9]} 23. Kd2
{[%clk 0:01:11.1]} 23... Nxf2 {[%clk 0:01:01.9]} 24. Qxe6+ {[%clk 0:00:37]}
24... Qxe6 {[%clk 0:00:59.8]} 25. dxe6 {[%clk 0:00:37.6]} 25... Rd8+ {[%clk
0:00:52.2]} 26. Kc2 {[%clk 0:00:34.5]} 26... Nxh1 {[%clk 0:00:51.1]} 27. Bg2
{[%clk 0:00:19.7]} 27... Rf2 {[%clk 0:00:51.7]} 28. Rxf2 {[%clk 0:00:12.7]}
28... Nxf2 {[%clk 0:00:51.9]} 29. Bxb7 {[%clk 0:00:14]} 29... Kf8 {[%clk
0:00:51.2]} 0-1

[Event "*** Titled Tuesday Blitz"]
[Site "Chess.com"]
[Date "2019.02.05"]
[Round "2"]
[White "NikolasTheiss"]
[Black "VFernandezB"]
[Result "0-1"]
[WhiteElo "2196"]
[BlackElo "2383"]
[TimeControl "180+2"]
[EndTime "13:21:39 PST"]
[Termination "VFernandezB won on time"]

1. e4 {[%clk 0:03:01.9]} 1... e6 {[%clk 0:03:00.9]} 2. d3 {[%clk 0:03:02.3]}
2... d5 {[%clk 0:03:02.4]} 3. Nd2 {[%clk 0:03:03.9]} 3... g6 {[%clk 0:03:02.3]}
4. g3 {[%clk 0:03:04.2]} 4... Bg7 {[%clk 0:03:03.6]} 5. Bg2 {[%clk 0:03:05.8]}
5... Ne7 {[%clk 0:03:04.8]} 6. f4 {[%clk 0:03:06.7]} 6... O-O {[%clk 0:03:05.9]}
7. Ngf3 {[%clk 0:03:08.2]} 7... c5 {[%clk 0:03:06.7]} 8. O-O {[%clk 0:03:09.6]}
8... Nbc6 {[%clk 0:03:07.9]} 9. c3 {[%clk 0:03:09.5]} 9... dxe4 {[%clk
0:03:08.7]} 10. dxe4 {[%clk 0:03:10.2]} 10... b6 {[%clk 0:03:09.9]} 11. Qe2
{[%clk 0:03:01.4]} 11... a5 {[%clk 0:03:09.7]} 12. a4 {[%clk 0:03:01]} 12... Ba6
{[%clk 0:03:10.2]} 13. Qf2 {[%clk 0:01:38.7]} 13... Bxf1 {[%clk 0:03:07.3]} 14.
Nxf1 {[%clk 0:01:40.6]} 14... Qc7 {[%clk 0:03:06.7]} 15. h3 {[%clk 0:01:32.5]}
15... Rad8 {[%clk 0:03:06.3]} 16. Be3 {[%clk 0:01:33]} 16... e5 {[%clk 0:03:05]}
17. N1h2 {[%clk 0:01:21.3]} 17... f5 {[%clk 0:03:05]} 18. exf5 {[%clk
0:01:19.8]} 18... Nxf5 {[%clk 0:03:05.4]} 19. Bd2 {[%clk 0:01:07.4]} 19... Qd7
{[%clk 0:02:19.9]} 20. Re1 {[%clk 0:00:35.8]} 20... exf4 {[%clk 0:02:07.6]} 21.
Bxf4 {[%clk 0:00:37.7]} 21... Rde8 {[%clk 0:01:48.9]} 22. Ng5 {[%clk 0:00:31.6]}
22... Ne5 {[%clk 0:01:42.3]} 23. Qc2 {[%clk 0:00:05.8]} 23... h6 {[%clk
0:01:33]} 24. Ne4 {[%clk 0:00:06.4]} 24... Qd3 {[%clk 0:01:29.1]} 25. Qb3+
{[%clk 0:00:06.8]} 25... c4 {[%clk 0:01:30]} 26. Qxb6 {[%clk 0:00:08.1]} 26...
Kh7 {[%clk 0:01:21.6]} 27. Nf2 {[%clk 0:00:06.7]} 27... Qc2 {[%clk 0:01:05.5]}
28. Qxa5 {[%clk 0:00:06.9]} 28... Nd3 {[%clk 0:01:02.7]} 29. Nxd3 {[%clk
0:00:06.3]} 29... cxd3 {[%clk 0:01:00.4]} 30. Rf1 {[%clk 0:00:07.1]} 30... Re2
{[%clk 0:00:58.6]} 0-1

[Event "*** Titled Tuesday Blitz"]
[Site "Chess.com"]
[Date "2019.02.05"]
[Round "2"]
[White "Walter_White_Poland"]
[Black "MateusViageiro"]
[Result "0-1"]
[WhiteElo "2163"]
[BlackElo "2190"]
[TimeControl "180+2"]
[EndTime "13:21:40 PST"]
[Termination "MateusViageiro won by resignation"]

1. e4 {[%clk 0:03:01.9]} 1... c5 {[%clk 0:02:59.3]} 2. Nf3 {[%clk 0:03:02.7]}
2... d6 {[%clk 0:03:00.7]} 3. d4 {[%clk 0:03:03.7]} 3... cxd4 {[%clk 0:03:02.2]}
4. Nxd4 {[%clk 0:03:04.8]} 4... Nf6 {[%clk 0:03:03.8]} 5. Nc3 {[%clk 0:03:05.7]}
5... a6 {[%clk 0:03:05.3]} 6. Bg5 {[%clk 0:03:06.9]} 6... Nc6 {[%clk 0:03:05.4]}
7. Bxf6 {[%clk 0:02:54.3]} 7... gxf6 {[%clk 0:03:04.9]} 8. Nf5 {[%clk
0:02:27.5]} 8... e6 {[%clk 0:02:53.9]} 9. Ne3 {[%clk 0:02:25.3]} 9... b5 {[%clk
0:02:52.6]} 10. Bd3 {[%clk 0:02:23.4]} 10... b4 {[%clk 0:02:51.8]} 11. Ne2
{[%clk 0:02:23.9]} 11... Ne5 {[%clk 0:02:51.5]} 12. O-O {[%clk 0:02:13.6]} 12...
Rg8 {[%clk 0:02:49.5]} 13. f4 {[%clk 0:02:11.9]} 13... Qb6 {[%clk 0:02:39.7]}
14. Qd2 {[%clk 0:02:10.4]} 14... Ng4 {[%clk 0:02:34.9]} 15. Rf3 {[%clk
0:02:11.3]} 15... d5 {[%clk 0:02:29.3]} 16. Kh1 {[%clk 0:01:44.8]} 16... Nxe3
{[%clk 0:02:18.8]} 17. Rxe3 {[%clk 0:01:42.4]} 17... Bc5 {[%clk 0:02:19.4]} 18.
Rg3 {[%clk 0:01:42]} 18... Rxg3 {[%clk 0:02:13.3]} 19. Nxg3 {[%clk 0:01:42.7]}
19... Bb7 {[%clk 0:02:14.2]} 20. exd5 {[%clk 0:01:28.1]} 20... Bxd5 {[%clk
0:02:14.2]} 21. c4 {[%clk 0:01:24.6]} 21... Be3 {[%clk 0:02:10.6]} 22. Qe2
{[%clk 0:01:21.6]} 22... Bc6 {[%clk 0:02:06.9]} 23. Be4 {[%clk 0:00:52]} 23...
Bxf4 {[%clk 0:02:03.4]} 24. Nh5 {[%clk 0:00:42.6]} 24... Be5 {[%clk 0:02:01.8]}
25. c5 {[%clk 0:00:38.7]} 25... Qxc5 {[%clk 0:01:51.3]} 26. Qf3 {[%clk
0:00:32.3]} 26... Bxe4 {[%clk 0:01:50.5]} 27. Qxe4 {[%clk 0:00:33.4]} 27... Rc8
{[%clk 0:01:50.9]} 28. Rf1 {[%clk 0:00:24.8]} 28... f5 {[%clk 0:01:47.4]} 29.
Qe2 {[%clk 0:00:15.4]} 29... Qc4 {[%clk 0:01:44.3]} 30. Qf3 {[%clk 0:00:12.8]}
30... Qh4 {[%clk 0:01:41.6]} 31. h3 {[%clk 0:00:09.7]} 31... Qe4 {[%clk
0:01:37.5]} 32. Qf2 {[%clk 0:00:07]} 32... Rc2 {[%clk 0:01:36.5]} 33. Qf3 {[%clk
0:00:04.3]} 33... Qxf3 {[%clk 0:01:35.8]} 34. gxf3 {[%clk 0:00:05.5]} 34... Rxb2
{[%clk 0:01:33.5]} 0-1

[Event "*** Titled Tuesday Blitz"]
[Site "Chess.com"]
[Date "2019.02.05"]
[Round "2"]
[White "WorldChampionBulletChess"]
[Black "cyber-alekhine2"]
[Result "0-1"]
[WhiteElo "2101"]
[BlackElo "2221"]
[TimeControl "180+2"]
[EndTime "13:21:41 PST"]
[Termination "cyber-alekhine2 won by resignation"]

1. d4 {[%clk 0:03:01.9]} 1... e6 {[%clk 0:02:57.1]} 2. e4 {[%clk 0:03:00.7]}
2... b6 {[%clk 0:02:55.3]} 3. Nc3 {[%clk 0:02:59.1]} 3... Bb7 {[%clk 0:02:56.4]}
4. Nf3 {[%clk 0:02:52.4]} 4... Bb4 {[%clk 0:02:56.7]} 5. Bd3 {[%clk 0:02:47.2]}
5... Nf6 {[%clk 0:02:56.9]} 6. O-O {[%clk 0:02:44.8]} 6... Bxc3 {[%clk
0:02:55.7]} 7. bxc3 {[%clk 0:02:46.7]} 7... Bxe4 {[%clk 0:02:56.9]} 8. Bxe4
{[%clk 0:02:47.5]} 8... Nxe4 {[%clk 0:02:57.9]} 9. Ba3 {[%clk 0:02:48.4]} 9...
Nxc3 {[%clk 0:02:51.6]} 10. Qd3 {[%clk 0:02:47.7]} 10... Nd5 {[%clk 0:02:52.3]}
11. c4 {[%clk 0:02:47.6]} 11... Nf6 {[%clk 0:02:53.3]} 12. Rfe1 {[%clk
0:02:38.8]} 12... d6 {[%clk 0:02:24.6]} 13. d5 {[%clk 0:02:36.6]} 13... e5
{[%clk 0:02:24.9]} 14. Nxe5 {[%clk 0:02:33.6]} 14... O-O {[%clk 0:02:25.4]} 15.
Nf3 {[%clk 0:02:30.9]} 15... Nbd7 {[%clk 0:02:26.1]} 16. Qf5 {[%clk 0:02:27.7]}
16... Qc8 {[%clk 0:02:05.1]} 17. Re7 {[%clk 0:02:10.8]} 17... Ne5 {[%clk
0:02:01.4]} 18. Qxc8 {[%clk 0:02:09.2]} 18... Nxf3+ {[%clk 0:02:02]} 19. gxf3
{[%clk 0:02:11.1]} 19... Raxc8 {[%clk 0:01:57.5]} 20. Rae1 {[%clk 0:02:11.4]}
20... Rfe8 {[%clk 0:01:58.2]} 21. Kg2 {[%clk 0:02:05.4]} 21... Kf8 {[%clk
0:01:57]} 22. Rxe8+ {[%clk 0:02:02.5]} 22... Rxe8 {[%clk 0:01:57.7]} 23. Re3
{[%clk 0:01:59.4]} 23... Nd7 {[%clk 0:01:48.3]} 24. f4 {[%clk 0:01:55.7]} 24...
f5 {[%clk 0:01:49.1]} 25. Kf3 {[%clk 0:01:39.3]} 25... Nf6 {[%clk 0:01:49.7]}
26. Bb4 {[%clk 0:01:38.9]} 26... Ne4 {[%clk 0:01:50.2]} 27. Ra3 {[%clk 0:01:39]}
27... a5 {[%clk 0:01:49.2]} 28. Bxa5 {[%clk 0:01:38.9]} 28... bxa5 {[%clk
0:01:49.7]} 29. Rxa5 {[%clk 0:01:40.8]} 29... Nd2+ {[%clk 0:01:46.7]} 30. Kg2
{[%clk 0:01:39.4]} 30... Nxc4 {[%clk 0:01:47.7]} 31. Ra7 {[%clk 0:01:40.6]}
31... Re7 {[%clk 0:01:47.3]} 32. a4 {[%clk 0:01:42.5]} 32... c6 {[%clk
0:01:46.3]} 33. Ra8+ {[%clk 0:01:42.3]} 33... Kf7 {[%clk 0:01:46.3]} 34. dxc6
{[%clk 0:01:43]} 34... Rc7 {[%clk 0:01:45.5]} 35. Ra6 {[%clk 0:01:34]} 35... Ke6
{[%clk 0:01:39.8]} 36. a5 {[%clk 0:01:33.7]} 36... Kd5 {[%clk 0:01:40.9]} 37.
Ra8 {[%clk 0:01:30.3]} 37... Kxc6 {[%clk 0:01:41.6]} 38. a6 {[%clk 0:01:13.5]}
38... Kb6 {[%clk 0:01:39]} 39. Rf8 {[%clk 0:00:58.1]} 39... g6 {[%clk
0:01:36.8]} 40. h4 {[%clk 0:00:51]} 40... Kxa6 {[%clk 0:01:37]} 41. h5 {[%clk
0:00:52.5]} 41... d5 {[%clk 0:01:33]} 42. hxg6 {[%clk 0:00:51.6]} 42... hxg6
{[%clk 0:01:30.3]} 43. Rf6+ {[%clk 0:00:53.2]} 43... Kb5 {[%clk 0:01:31.3]} 44.
Rxg6 {[%clk 0:00:55.1]} 44... d4 {[%clk 0:01:32.9]} 45. Kf3 {[%clk 0:00:49.1]}
45... d3 {[%clk 0:01:33.4]} 46. Rg8 {[%clk 0:00:47.9]} 46... Rd7 {[%clk
0:01:32.6]} 47. Rb8+ {[%clk 0:00:48.4]} 47... Kc5 {[%clk 0:01:32.9]} 48. Rc8+
{[%clk 0:00:48.9]} 48... Kd4 {[%clk 0:01:34.2]} 0-1